Cogmind - Beta 9.4 BR @@@ ROGUE MODE // 2020.02.25 @ 22:20:52 // Experiment/BattleRoyale Player: PlasticHeart Result: Escaped! Performance ------------- Evolutions (0) 0 Regions Visited (0) 0 Robots Destroyed (4) 20 Value Destroyed (2000) 2000 Prototype IDs (4) 80 Alien Tech Used (0) 0 Bonus (36809) 36809 TOTAL SCORE: 38909 Bonus ------- Win 3000 Win Speed 33809 Cogmind --------- Core Integrity 133/250 Matter 300/300 Energy 202/210 System Corruption 3% Temperature Cool (4) Movement Flying (29) Location To Epsilon Eridani Parts ------- > --- POWER (3) -------- Light Deuterium Engine Makeshift Power Source > --- PROPULSION (6) --- Cooled Linear Gravjet Cesium-ion Thruster Field Propulsion Drive Field Propulsion Array Improved Q-thruster > --- UTILITY (6) ------ Cooling System Makeshift Sensor Array Advanced Melee Analysis Suite Advanced Melee Analysis Suite Target Analyzer Improved Armor Integrity Analyzer > --- WEAPON (4) ------- Katana Makeshift Axe Makeshift Sword Makeshift Spear > --- INVENTORY (4) ---- Advanced Sensor Array Makeshift Axe Makeshift Axe Peak State ------------ > --- POWER ------------ Light Deuterium Engine Makeshift Power Source > --- PROPULSION ------- Cooled Linear Gravjet Cesium-ion Thruster Field Propulsion Drive Field Propulsion Array Improved Q-thruster > --- UTILITY ---------- Cooling System Makeshift Sensor Array Advanced Melee Analysis Suite Advanced Melee Analysis Suite Target Analyzer Improved Armor Integrity Analyzer > --- WEAPON ----------- Katana Makeshift Axe Makeshift Sword Makeshift Spear > --- INVENTORY -------- Advanced Sensor Array Makeshift Axe Makeshift Axe [Rating: 90] Favorites ----------- Power Fission Core Engine Light Deuterium Engine Power Core Fission Core Propulsion Field Propulsion Drive Treads Heavy Treads Hover Unit Cooled Linear Gravjet Flight Unit Field Propulsion Drive Utility Advanced Melee Analysis Suite Device Cooling System Processor Advanced Melee Analysis Suite Protection Improved Medium Armor Plating Weapon Makeshift Sword Energy Gun Heavy Beamcaster Energy Cannon Proton Cannon Ballistic Gun Flak Gun Slashing Weapon Makeshift Sword Piercing Weapon Makeshift Spear Build | -5 ------- Run | Tow Slots Evolved . | . Power . | . Propulsion . | . Utility . | . Weapon . | . Parts Attached 25 | 25 Power 3 | 3 Engine 3 | 3 Core . | . Reactor . | . Propulsion 7 | 7 Treads . | . Leg . | . Wheel . | . Hover 1 | 1 Flight 6 | 6 Utility 10 | 10 Device 5 | 5 Storage . | . Processor 4 | 4 Hackware . | . Protection 1 | 1 Artifact . | . Weapon 5 | 5 Energy Gun . | . Energy Cannon . | . Ballistic Gun 1 | 1 Ballistic Cannon . | . Launcher . | . Special Weapon . | . Impact Weapon . | . Slashing Weapon 3 | 3 Piercing Weapon 1 | 1 Special Melee Weapon . | . Unidentified Prototypes 4 | 4 Parts Lost 2 | 2 Power 1 | 1 Propulsion . | . Utility 1 | 1 Weapon . | . Highest Loss Streak 2 | 2 Average Slot Usage (%) 84 | 84 Engine 6 | 6 Core 3 | 3 Flight 17 | 17 Device 10 | 10 Processor 21 | 21 Protection 1 | 1 Slashing Weapon 15 | 15 Piercing Weapon 1 | 1 Naked Turns . | . Heaviest Build 41 | 41 Greatest Support 70 | 70 Greatest Overweight (x) . | . Average Overweight (x) . | . Largest Inventory Capacity 4 | 4 Average Capacity 4 | 4 Most Carried 4 | 4 Average Carried 2 | 2 Final Capacity 4 | 4 Final Carried 3 | 3 Class Distribution -------------------- 35% | Derelict-Sprinter 35% | Mutant 28% | Sprinter Dominant Class ---------------- Derelict-Sprinter | -5/Wartown Resources | -5 ----------- Run | Tow Matter Collected 35 | 35 Remotely . | . Salvage Created 240 | 240 Parts 1 | 1 Haulers Intercepted . | . Recyclers Shooed . | . Parts Field Recycled . | . Retrieved Matter . | . Parts Self-Destructed . | . Prevented . | . Kills | -5 ------- Run | Tow Combat Hostiles Destroyed 4 | 4 Melee 3 | 3 Guns 1 | 1 Classes Destroyed 1 | 1 Player 4 | 4 Best Kill Streak 1 | 1 Combat Bots Only 1 | 1 Max Kills in Single Turn 1 | 1 Gunslinging . | . Exploded . | . Melee 1 | 1 Uniques/NPCs Destroyed . | . Combat | -5 -------- Run | Tow Damage Taken 570 | 570 Core 291 | 291 Absorbed by Shields 60 | 60 Redirected to Core 6707 | 6707 Core Remaining (%) 53 | 53 Volleys Fired 6 | 6 Largest 3 | 3 Hottest 184 | 184 Shots Fired 14 | 14 Gun 12 | 12 Cannon 2 | 2 Launcher . | . Special . | . Kinetic 6 | 6 Thermal 6 | 6 Explosive . | . Electromagnetic 2 | 2 Robot Hit Streak 4 | 4 Robot Miss Streak 4 | 4 Penetration Max . | . Secondary Targets . | . Shots Hit Robots 33 | 33 Core Hits 4 | 4 Critical Hits 2 | 2 Critical Kills . | . Critical Parts Destroyed 1 | 1 Melee Attacks 39 | 39 Impact . | . Slashing 37 | 37 Piercing 2 | 2 Sneak Attacks . | . Combat Hostiles . | . Follow-up Attacks 8 | 8 Damage Inflicted 1355 | 1355 Guns 137 | 137 Cannons 21 | 21 Explosions 284 | 284 Melee 913 | 913 Ramming . | . Kinetic 66 | 66 Thermal 149 | 149 Explosive 206 | 206 Electromagnetic 21 | 21 Impact . | . Slashing 878 | 878 Piercing 35 | 35 Highest Corruption 3 | 3 Average Corruption 2 | 2 Corruption Purged . | . Effects 4 | 4 Message Errors 1 | 1 Matter Fused 1 | 1 Energy Discharges 1 | 1 Data Loss (minor) 1 | 1 Overload Shots . | . Overflow Damage . | . Projectiles . | . Explosions . | . Melee . | . Knockbacks . | . Impact . | . Kinetic . | . Secondary . | . Self-Inflicted Damage 46 | 46 Shots 1 | 1 Rammed . | . Targets Rammed . | . Kicked . | . Crushed . | . Highest Temperature 480 | 480 Average Temperature 153 | 153 Received Heat Transfer 54 | 54 Effects 1 | 1 Shutdowns 1 | 1 Siege Activations . | . Robots Corrupted . | . Combat Hostiles . | . Parts Fried . | . Impact Corruptions . | . Robots Melted . | . Combat Hostiles . | . Parts Melted 8 | 8 Heat Transferred 39 | 39 Parts Sabotaged . | . Parts Stolen . | . Parts Stripped . | . Power Chain Reactions 1 | 1 Missiles Intercepted . | . Alert | -5 ------- Run | Tow Peak Influence . | . Average Influence . | . Maximum Alert Level . | . Low Security (%) . | . Level 1 . | . Level 2 . | . Level 3 . | . Level 4 . | . Level 5 . | . High Security . | . Max Security . | . Squads Dispatched . | . Investigation . | . Extermination . | . Reinforcement . | . Assault . | . Garrison . | . Intercept . | . Construction Impeded . | . Haulers Reinforced . | . Stealth | -5 --------- Run | Tow Distress Signals . | . Communications Jammed . | . Distress Signals . | . Times Spotted 4 | 4 Peak Tracking Total 1 | 1 Tactical Retreats . | . Traps | -5 ------- Run | Tow Traps Triggered . | . Indirectly . | . Trap Hack Attempts . | . Triggered . | . Disarmed . | . Reprogrammed . | . Reused . | . Traps Extracted . | . Installed . | . Triggered . | . Machines | -5 ---------- Run | Tow Machines Disabled 9 | 9 Max in Single Turn 3 | 3 Machines Sabotaged . | . Garrisons Compromised . | . Overloaded Fab Kills . | . Fab Network Shutdowns . | . Hacking | -5 --------- Run | Tow Machines Accessed . | . Terminals . | . Fabricators . | . Repair Stations . | . Recycling Units . | . Scanalyzers . | . Garrison Access . | . Total Hacks . | . Successful . | . Failed . | . Catastrophic . | . Database Lockouts . | . Manual . | . Terminals . | . Fabricators . | . Repair Stations . | . Recycling Units . | . Scanalyzers . | . Garrison Access . | . Terminal Hacks . | . Fabricator Hacks . | . Repair Station Hacks . | . Recycling Unit Hacks . | . Scanalyzer . | . Garrison Access Hacks . | . Unauthorized Hacks . | . Terminals . | . Fabricators . | . Repair Stations . | . Recycling Units . | . Scanalyzers . | . Garrison Access . | . Data Cores Recovered . | . Used . | . Hacking Detections . | . Full Trace Events . | . Feedback Events . | . Feedback Blocked . | . Robot Schematics Acquired . | . Robots Built . | . Matter . | . Time . | . Total Robot Build Rating . | . Part Schematics Acquired . | . Parts Built . | . Matter . | . Time . | . Total Part Build Rating . | . Parts Repaired . | . Time . | . Parts Recycled . | . Recycled Matter . | . Retrieved Matter . | . Retrieved Components . | . Parts Scanalyzed . | . Part Schematics Acquired . | . Parts Damaged . | . Bothacking | -5 ------------ Run | Tow Used RIF Installer . | . Robots Hacked . | . Non-combat . | . Combat . | . Robot Hacks Applied . | . Relay Couplers Released . | . Robots Rewired . | . Allies Hacked . | . Hacks Repelled . | . Allies | -5 -------- Run | Tow Total Allies . | . Largest Group . | . Highest-Rated Group . | . Highest-Rated Ally . | . Total Orders . | . Ally Attacks . | . Total Damage . | . Kills . | . Allies Corrupted . | . Allies Melted . | . Intel | -5 ------- Run | Tow Robot Analysis Total . | . Derelict Logs Recovered . | . Drone Launches . | . Drone Recoveries . | . Exploration | -5 ------------- Run | Tow Turns Passed 772 | 772 Spaces Moved 1682 | 1682 Core . | . Treads 30 | 30 Legs . | . Wheels . | . Hover . | . Flight 1652 | 1652 Fastest Speed 29 | 29 Average Speed 35 | 35 Slowest Speed 160 | 160 Overloaded Moves . | . Propulsion Burnouts . | . Robots Hopped . | . Cave-ins Triggered . | . Exploration Rate (%) 48 | 48 Regions Visited 1 Branch Regions 1 Pre-discovered Areas . | . Known Exits Taken . | . Unknown Exits Taken . | . Scrap Searched . | . Spaces Dug 6 | 6 Terrain Destroyed 31 | 31 Melee 6 | 6 Projectile . | . AOE 25 | 25 Actions | -5 --------- Run | Tow Total 1813 | 1813 Wait 54 | 54 Move 1681 | 1681 Hop . | . Pick Up 5 | 5 Fast Attach 21 | 21 Attach 3 | 3 Detach 1 | 1 Swap 1 | 1 Drop 18 | 18 Fire 6 | 6 Melee 23 | 23 Ram . | . Kick . | . Crush . | . Escape Stasis . | . Rewire . | . Trap . | . Miscellaneous . | . Route ------- -5/Wartown To Epsilon Eridani History --------- Turn | Location | Event 390 | -5/Wartown | Core integrity fell below 50% 406 | -5/Wartown | Core integrity fell below 20% 773 | *** | Escaped! Last Messages --------------- 00672_ Acquired 10 matter. 00730_ System corrupted: Energy discharge (-79). 00748_ Mak. Axe follow-up attack on RevisionAccess-19. 00751_ Mak. Spear follow-up attack on RevisionAccess-19. 00753_ Mak. Sword follow-up attack on RevisionAccess-19. 00761_ Mak. Axe follow-up attack on RevisionAccess-19. 00761_ RevisionAccess-19 suffers critical hit. 00761_ Destroyed Rocket Launcher. 00763_ RevisionAccess-19 attaches Fusion Compressor. 00764_ Adv. Melee Analysis Suite melted. 00764_ Hvy. Assault Rifle melted. 00764_ Imp. Heavy Armor Plating melted. 00764_ Airjet melted. 00764_ Lgt. Particle Reactor melted. 00764_ RevisionAccess-19 destroyed. [[Congratulations! You are victorious! The exit is now open...]] 00765_ Used Protomatter to restore core integrity (+54, depleted) 00766_ System corrupted: Component data lost. 00772_ Identified Cld. Linear Gravjet. [Achievement: Expert Speedrunner] Map ----- +----------------------------------------------------+ | #?"" # """ | | #? # # | | ########## | | # | | # | | ###+############## | | " ] # | | # """ """ """ + | | ####+##+##### = # """ """ """ # | | # [] # """ """ """ # | | ?# ! *% ! # | | # /# """ """ """ # | | # " """ """ """ # | | # """ """ """ # | | # # #+#### | | ####### ################"# ?? | | # ][ # ] # | | " # # # | | " # # ]# | | " /# ] # ###### | | " # [ # | | #"""" """ # ### | | + | | ; | | + | | [ @ + ## | | !% ; # | | ###! # ### # | | # # # [ # | | # # #! # | | # # # # | | # # # # | | # # # # | | # # # # | | # ########;+;++####### # | | # # ?# ########## ## | | # # ?# # # | | # # """ # # # | | # # """ # # + | | # # """ + + # | | # # # # # | | # # """ # ############## | | #? ??# """?# #? # | | #????????# """?# #? # | | !!#????????# ??# # # | | ?????????????###??# # ?# | | ?????????############## + """ ""?????# | | ?????????# ! # # """ ""?????# | | ?????????# # # """ ""?????# | | ???????? # # #? ?????# | +----------------------------------------------------+ Best States ------------- Heat Dissipation 47 Energy Generation 27 Energy Capacity 370 Matter Stores 300 Matter Capacity 300 Sight Range 22 Robot Scan Range 22 Terrain Scan Density 10 Armor Coverage 225 Resistance: KI 25 Evasion (%) 63 Melee Accuracy 16 Target Analysis 5 Armor Integrity Analysis 50 Recoil Reduction 4 Item Schematics ----------------- None Robot Schematics ------------------ None Fabricated ------------ Nothing Alien Tech Used ----------------- None Achievements -------------- Expert Speedrunner Challenges ------------ None Game ------ Seed WeldingRecyclingCannon Manual? 0 Play Time 00:19:45 Cumulative 670.8 hours Start 2020.02.25 @ 22:05:27 End 2020.02.25 @ 22:20:52 Sessions 1 Manual Loads 0 Difficulty Rogue Special Mode Experiment/BattleRoyale Game No. 395 Rogue 395 Adventurer 0 Explorer 0 Win Type 0 Total 54 Types 31/2/12/5/1/1/2 Lore% 90 Gallery% 87 Achievement% 73 Wizard Run 0 Options --------- ASCII 0 Keyboard 0 Movement Mouse Keybinds 0 Fullscreen 0 Font 32/SmallcapsGlow Map View 76x50 Tactical HUD 1 Map Filters NONE Filters NONE Steam 0 RUN: 113a0f4d-0cc0-4d98-99c5-655d4b8efc8c